bitfinex/quotes_BTCUSD_20250331
["timestamp","ask_amount","ask_price","bid_price","bid_amount"]
[1743433911277,0.0003372,83641.0,83633.0,0.1298235]
[1743433911652,0.0003372,83641.0,83634.0,0.02649685]
[1743433911838,0.11364776,83635.0,83634.0,0.54910071]
[1743433912032,0.11364776,83635.0,83634.0,0.55729746]
[1743433912512,0.11364776,83635.0,83634.0,0.54534146]
[1743433912725,0.11364776,83635.0,83634.0,0.55729746]
[1743433913106,0.11364776,83635.0,83634.0,0.53080061]
[1743433913253,0.11364776,83635.0,83634.0,0.73012061]
[1743433913683,0.11464776,83635.0,83634.0,0.33012061]
[1743433913883,0.11364776,83635.0,83634.0,0.35661746]
[1743433914218,0.11364776,83635.0,83634.0,0.76061746]
[1743433914384,0.11464776,83635.0,83634.0,0.76061746]
[1743433914703,0.11464776,83635.0,83634.0,0.74866146]
[1743433914934,0.11464776,83635.0,83634.0,0.76061746]
[1743433915912,0.002,83635.0,83634.0,0.76061746]
[1743433916672,0.0003372,83641.0,83635.0,0.26563085]
[1743433916875,0.00047704,83636.0,83635.0,2.81837355]
[1743433917086,0.00047704,83636.0,83635.0,2.81737355]
[1743433917404,0.00047704,83636.0,83635.0,2.77847955]
[1743433917678,0.00047704,83636.0,83635.0,2.77747955]
[1743433918221,0.00047704,83636.0,83635.0,3.17747955]
[1743433918740,0.00047704,83636.0,83635.0,3.25707955]
[1743433918951,0.00147704,83636.0,83635.0,3.26007955]
[1743433919708,0.00147704,83636.0,83635.0,3.26486855]
[1743433920336,0.00047704,83636.0,83635.0,3.26186855]
[1743433920537,0.00147704,83636.0,83635.0,3.26686855]
[1743433920934,0.00147704,83636.0,83635.0,3.26186855]
[1743433921142,0.00247704,83636.0,83635.0,3.26686855]
[1743433921867,0.002,83649.0,83635.0,3.26686855]
[1743433921868,2.4e-07,83649.0,83648.0,0.005]
[1743433922073,4.4e-07,83655.0,83654.0,0.36557485]
[1743433922221,4.4e-07,83655.0,83654.0,1.09933871]
[1743433922426,4.4e-07,83655.0,83654.0,1.52743086]
[1743433923637,4.4e-07,83655.0,83654.0,1.53343086]
[1743433923834,0.002,83679.0,83665.0,0.351]
[1743433924060,0.30013979,83666.0,83665.0,3.53877603]
[1743433924468,0.30013979,83666.0,83665.0,3.93877603]
[1743433926102,7.9e-07,83666.0,83665.0,3.94377603]
[1743433926305,0.002,83679.0,83678.0,0.26550185]
[1743433926512,0.002,83679.0,83678.0,3.10253752]
[1743433927102,0.002,83679.0,83678.0,3.50253752]
[1743433927743,0.003,83679.0,83678.0,3.50753752]
[1743433928298,0.003,83679.0,83678.0,3.80753752]
[1743433928478,0.003,83679.0,83678.0,3.83253752]
[1743433928903,0.0003372,83690.0,83689.0,0.350929]
[1743433929263,0.0003372,83690.0,83689.0,3.33148987]
[1743433929385,0.0003372,83690.0,83689.0,3.37878987]
[1743433929585,2e-07,83690.0,83689.0,4.10378987]
[1743433929798,2e-07,83690.0,83689.0,4.79908987]
[1743433930301,2e-07,83690.0,83689.0,4.87598987]
[1743433930918,2e-07,83690.0,83689.0,4.88198987]
[1743433931863,2e-07,83690.0,83689.0,5.20092111]
[1743433932024,2e-07,83690.0,83689.0,4.84064987]
[1743433932407,0.00208879,83709.0,83708.0,0.250871]
[1743433932520,0.0022286,83709.0,83708.0,3.62922295]
[1743433932748,0.0022286,83709.0,83708.0,3.6369831]
[1743433932951,0.16265119,83729.0,83710.0,0.23892]
[1743433933163,0.23887,83728.0,83711.0,0.13714471]
[1743433933370,0.238872,83727.0,83711.0,0.14489826]
[1743433933577,0.01987278,83727.0,83711.0,0.38381426]
[1743433933772,0.00046577,83729.0,83713.0,0.01454085]
[1743433933974,0.00046577,83729.0,83715.0,0.01454085]
[1743433933975,0.23933177,83729.0,83715.0,0.01454085]
[1743433934174,0.00046577,83729.0,83717.0,0.01454085]
[1743433934384,0.00046577,83729.0,83719.0,0.01454085]
[1743433934637,0.00046577,83729.0,83721.0,0.01454085]
[1743433934842,0.00046577,83729.0,83728.0,0.26535185]
[1743433935015,0.00046577,83729.0,83728.0,3.00888295]
[1743433935215,0.00046577,83729.0,83728.0,3.01658535]
[1743433935621,0.00046577,83729.0,83728.0,2.76577435]
[1743433935818,0.00046577,83729.0,83728.0,2.77771735]
[1743433937088,0.00046577,83729.0,83728.0,2.78371735]
[1743433938189,0.00046577,83729.0,83728.0,3.18371735]
[1743433938423,0.00046577,83729.0,83728.0,3.18871735]
[1743433939598,0.00046577,83729.0,83728.0,3.18271735]
[1743433939807,0.00046577,83729.0,83728.0,3.18871735]
[1743433941254,0.002337,83739.0,83738.0,0.111942]
[1743433941566,0.00247665,83739.0,83738.0,3.3708944]
[1743433941783,0.00247665,83739.0,83738.0,3.38543525]
[1743433941986,0.00247665,83739.0,83738.0,3.63621725]
[1743433942357,0.00247665,83739.0,83738.0,3.43745725]
[1743433942556,0.00247665,83739.0,83738.0,3.63621725]
[1743433942927,0.00247665,83739.0,83738.0,3.64221725]
[1743433943770,0.00247665,83739.0,83738.0,4.04221725]
[1743433944154,0.00247665,83739.0,83738.0,3.84945725]
[1743433944356,0.00247665,83739.0,83738.0,4.04817725]
[1743433945192,0.00247665,83739.0,83738.0,4.03617725]
[1743433945734,0.00247665,83739.0,83738.0,4.02423525]
[1743433945908,0.00247665,83739.0,83738.0,4.03617725]
[1743433946107,0.00247665,83739.0,83738.0,3.58667525]
[1743433946320,0.00247665,83739.0,83738.0,3.78539525]
[1743433946608,0.00247665,83739.0,83738.0,4.03019525]
[1743433946813,0.00247665,83739.0,83738.0,4.02419525]
[1743433947036,0.00247665,83739.0,83738.0,4.03613725]
[1743433947309,0.00247665,83739.0,83738.0,4.04213725]
[1743433947510,0.00247665,83739.0,83738.0,4.03613725]
[1743433947808,0.00247665,83739.0,83738.0,4.04213725]
[1743433950399,0.00247665,83739.0,83738.0,3.79135525]
[1743433950981,0.00247665,83739.0,83738.0,4.03019525]
[1743433951164,0.00247665,83739.0,83738.0,4.04213725]
[1743433951561,0.00247665,83739.0,83738.0,3.59267525]
[1743433951882,0.00247665,83739.0,83738.0,1.94606995]
[1743433952350,0.00247665,83739.0,83738.0,0.73480716]
[1743433952503,0.00247665,83739.0,83738.0,0.53616716]
[1743433952730,0.00247665,83739.0,83738.0,0.73480716]
[1743433953073,0.00247665,83739.0,83738.0,0.72880716]
[1743433953497,0.00247665,83739.0,83738.0,0.73480716]
[1743433953731,0.00247665,83739.0,83738.0,0.72880716]
[1743433954094,0.00247665,83739.0,83738.0,0.73480716]
[1743433955796,0.00247665,83739.0,83738.0,0.53616716]
[1743433955923,0.56439858,83739.0,83738.0,0.6121633]
[1743433956140,0.56439858,83739.0,83738.0,0.4135633]
[1743433956337,0.56439858,83739.0,83738.0,0.0135633]
[1743433956765,0.31362058,83739.0,83738.0,1.21882609]
[1743433957301,0.31362058,83739.0,83738.0,1.54602995]
[1743433957833,0.56439858,83739.0,83738.0,1.42342609]
[1743433958040,0.58670903,83739.0,83738.0,1.42342609]
[1743433958240,0.33593103,83739.0,83738.0,1.42342609]
[1743433959937,0.550814,83727.0,83726.0,0.0001683]
[1743433960229,0.674414,83727.0,83726.0,0.00527888]
[1743433960448,0.70342313,83727.0,83726.0,0.00527888]
[1743433960649,0.45260913,83727.0,83726.0,0.00527888]
[1743433960853,0.69148013,83727.0,83726.0,0.00527888]
[1743433961184,0.70342313,83727.0,83726.0,0.0001683]
[1743433961387,0.72573358,83727.0,83726.0,0.0061683]
[1743433961588,0.47491958,83727.0,83726.0,0.0061683]
[1743433962011,0.45705438,83727.0,83726.0,0.01127888]
[1743433962552,0.69592538,83727.0,83726.0,0.01127888]
[1743433962814,0.45705438,83727.0,83726.0,0.01127888]
[1743433963015,0.45705438,83727.0,83726.0,0.13388274]
[1743433963219,0.33345438,83727.0,83726.0,0.13388274]
[1743433963418,0.31114393,83727.0,83726.0,0.13388274]
[1743433964084,0.31114393,83727.0,83726.0,0.01127888]
[1743433964085,0.56195793,83727.0,83726.0,0.01127888]
[1743433964286,0.64702968,83727.0,83726.0,0.0001683]
[1743433964457,0.69752968,83727.0,83726.0,0.0001683]
[1743433964684,0.81674843,83727.0,83726.0,0.0001683]
[1743433965287,0.93835229,83727.0,83726.0,0.0001683]
[1743433965488,0.93835229,83727.0,83707.0,0.19856]
[1743433965489,0.63255,83715.0,83707.0,0.19856]
[1743433965892,0.3,83693.0,83691.0,0.61992]
[1743433966033,0.3,83697.0,83695.0,0.19852]
[1743433966753,0.56318328,83697.0,83695.0,0.19852]
[1743433966955,0.3,83696.0,83695.0,0.19852]
[1743433967157,0.550908,83696.0,83695.0,0.19852]
[1743433967357,0.3,83696.0,83695.0,0.20198577]
[1743433967754,0.53896,83696.0,83695.0,0.20198577]
[1743433968121,0.3,83696.0,83695.0,0.20198577]
[1743433968319,0.3,83696.0,83695.0,0.40046577]
[1743433968542,0.301,83696.0,83695.0,0.40346577]
[1743433968664,0.53996,83696.0,83695.0,0.40346577]
[1743433968869,0.301,83696.0,83695.0,0.40346577]
[1743433969153,0.301,83696.0,83695.0,0.00346577]
[1743433969357,0.551908,83696.0,83695.0,0.00346577]
[1743433969846,0.80651186,83696.0,83695.0,0.00346577]
[1743433970062,0.550919,83692.0,83669.0,1.21126279]
[1743433970275,0.539031,83671.0,83669.0,1.2114026]
[1743433970424,0.539031,83671.0,83669.0,1.21808648]
[1743433971054,0.3,83671.0,83669.0,1.21808648]
[1743433971264,0.011951,83670.0,83669.0,1.21808648]
[1743433971466,0.093251,83670.0,83669.0,1.21808648]
[1743433971703,0.093251,83670.0,83669.0,1.22108648]
[1743433972678,0.093251,83670.0,83669.0,0.00982369]
[1743433972858,0.40208904,83670.0,83669.0,0.00982369]
[1743433973063,0.52130779,83670.0,83669.0,0.00313981]
[1743433973455,0.52130779,83670.0,83669.0,0.00013981]
[1743433973655,0.52230779,83670.0,83669.0,0.00013981]
[1743433974231,0.52130779,83670.0,83669.0,0.00013981]
[1743433974418,0.52230779,83670.0,83669.0,0.00013981]
[1743433974616,0.52130779,83670.0,83669.0,0.00013981]
[1743433975608,0.52230779,83670.0,83669.0,0.00013981]
[1743433977877,0.52230779,83670.0,83669.0,0.00030811]
[1743433980232,0.76134179,83670.0,83669.0,0.00030811]
[1743433983962,0.88394565,83670.0,83669.0,0.00030811]
[1743433984368,0.91394565,83670.0,83669.0,1.1e-07]
[1743433984769,0.96114565,83670.0,83669.0,1.1e-07]
[1743433985009,0.67523,83655.0,83654.0,5e-07]
[1743433985131,0.67523,83655.0,83627.0,1.21074445]
[1743433985132,0.551066,83643.0,83642.0,0.0001683]
[1743433985347,0.41921875,83643.0,83642.0,0.0001683]
[1743433985549,0.67028475,83643.0,83642.0,0.00030809]
[1743433986378,0.69559609,83643.0,83642.0,0.00030809]
[1743433986979,0.68364109,83643.0,83642.0,0.00030809]
[1743433987408,0.69559609,83643.0,83642.0,0.00030809]
[1743433987685,0.70446211,83643.0,83642.0,0.00030809]
[1743433988094,0.70546211,83643.0,83642.0,0.00130809]
[1743433989288,0.716554,83643.0,83642.0,0.00130809]
[1743433990077,0.96176172,83643.0,83642.0,0.00130809]
[1743433990708,0.85691299,83643.0,83642.0,0.00130809]
[1743433991200,0.75650743,83643.0,83642.0,0.00130809]
[1743433991421,0.75550743,83643.0,83642.0,0.00030809]
[1743433992031,0.75650743,83643.0,83642.0,0.00130809]
[1743433992404,0.75550743,83643.0,83642.0,0.00030809]
[1743433992630,0.75650743,83643.0,83642.0,0.00130809]
[1743433993947,0.74455243,83643.0,83642.0,0.00130809]
[1743433994163,0.75650743,83643.0,83642.0,0.00130809]
[1743433994375,0.7387523,83643.0,83642.0,0.00130809]
[1743433994916,0.7377523,83643.0,83642.0,0.00030809]
[1743433995324,0.7387523,83643.0,83642.0,0.00130809]
[1743433996987,0.72766041,83643.0,83642.0,0.00130809]
[1743433997811,0.97286813,83643.0,83642.0,0.00130809]
[1743433998024,0.72766041,83643.0,83642.0,0.00130809]
[1743433999099,0.84926427,83643.0,83642.0,0.00030809]
[1743433999300,0.93026427,83643.0,83642.0,0.00030809]
[1743433999548,0.93126427,83643.0,83642.0,0.00130809]
[1743433999687,1.05386813,83643.0,83642.0,0.001]
[1743434000975,0.93126427,83643.0,83642.0,0.001]
[1743434001181,0.551099,83632.0,83614.0,1.21126279]
[1743434001355,0.551099,83632.0,83618.0,0.19844]
[1743434001674,0.79292161,83632.0,83605.0,1.21126279]
[1743434001866,0.79292161,83632.0,83601.0,0.002]
[1743434001867,0.55116,83612.0,83604.0,0.19844]
[1743434002072,0.74937875,83612.0,83611.0,0.00046634]
[1743434002570,0.82057705,83612.0,83611.0,0.00046634]
[1743434002781,1.06578477,83612.0,83611.0,0.0001683]
[1743434003319,0.94318091,83612.0,83611.0,0.0001683]
[1743434004640,0.70171721,83612.0,83611.0,0.0001683]
[1743434005303,0.70271721,83612.0,83611.0,0.0001683]
[1743434005720,0.70171721,83612.0,83611.0,0.0001683]
[1743434005859,0.70271721,83612.0,83611.0,0.0001683]
[1743434006890,0.68051891,83612.0,83611.0,0.0001683]
[1743434007392,0.42935891,83612.0,83611.0,0.0001683]
[1743434007886,0.69166996,83612.0,83611.0,0.0001683]
[1743434008684,0.71397152,83612.0,83611.0,0.0001683]
[1743434009002,0.71297152,83612.0,83611.0,0.0001683]
[1743434009242,0.70282047,83612.0,83611.0,0.0001683]
[1743434009921,0.68051891,83612.0,83611.0,0.0001683]
[1743434011613,0.69167024,83612.0,83611.0,0.0001683]
[1743434012524,0.44051024,83612.0,83611.0,0.0001683]
[1743434012729,0.67971024,83612.0,83611.0,0.0001683]
[1743434013114,0.69167024,83612.0,83611.0,0.0001683]
[1743434013715,0.69167024,83612.0,83611.0,0.0003368]
[1743434014697,0.68051891,83612.0,83611.0,0.0003368]
[1743434015093,0.67951891,83612.0,83611.0,0.0003368]
[1743434015300,0.80212277,83612.0,83611.0,0.0003368]
[1743434015507,0.68051891,83612.0,83611.0,0.0003368]
[1743434015719,0.93192277,83612.0,83611.0,0.0003368]
[1743434016103,0.68051891,83612.0,83611.0,0.0003368]
[1743434016677,0.67951891,83612.0,83611.0,0.0003368]
[1743434017287,0.68051891,83612.0,83611.0,0.0003368]
[1743434018229,0.69168399,83612.0,83611.0,0.0003368]
[1743434021136,0.68051891,83612.0,83611.0,0.0003368]
[1743434021498,0.80312277,83612.0,83611.0,8e-07]
[1743434023490,0.80212277,83612.0,83611.0,8e-07]
[1743434023694,0.69068874,83612.0,83611.0,8e-07]
[1743434023894,0.69168874,83612.0,83611.0,8e-07]
[1743434024042,0.44052874,83612.0,83611.0,8e-07]
[1743434024246,0.45248874,83612.0,83611.0,8e-07]
[1743434024453,0.68051891,83612.0,83611.0,8e-07]
[1743434024896,0.42935891,83612.0,83611.0,8e-07]
[1743434025070,0.68051891,83612.0,83611.0,8e-07]
[1743434025272,0.67951891,83612.0,83611.0,8e-07]
[1743434025507,0.67985591,83612.0,83611.0,8e-07]
[1743434025717,0.12969591,83612.0,83611.0,8e-07]
[1743434025996,0.37985591,83612.0,83611.0,8e-07]
[1743434026465,0.68085591,83612.0,83611.0,8e-07]
[1743434028174,0.42969591,83612.0,83611.0,8e-07]
[1743434028592,0.66889591,83612.0,83611.0,8e-07]
[1743434028799,0.42969591,83612.0,83611.0,8e-07]
[1743434029004,0.011959,83617.0,83611.0,8e-07]
[1743434029199,0.239192,83615.0,83611.0,8e-07]
[1743434029353,0.251145,83617.0,83611.0,8e-07]
[1743434029557,0.2392,83612.0,83611.0,8e-07]
[1743434029779,0.239191,83615.0,83611.0,8e-07]
[1743434029989,0.00877448,83617.0,83611.0,8e-07]
[1743434030142,0.00877448,83617.0,83612.0,0.12260386]
[1743434030343,0.001,83615.0,83612.0,0.12260386]
[1743434031381,0.25116,83612.0,83611.0,1.21126359]
[1743434031585,0.239194,83614.0,83611.0,1.40950359]
[1743434031867,0.251151,83615.0,83611.0,1.40950359]
[1743434032053,0.239196,83614.0,83611.0,1.40950359]
[1743434032224,0.239196,83614.0,83612.0,0.001]
[1743434032425,0.251156,83613.0,83612.0,0.001]
[1743434032622,0.239196,83614.0,83612.0,0.001]
[1743434032623,0.239194,83614.0,83612.0,0.001]
[1743434032834,0.239194,83614.0,83611.0,1.40950359]
[1743434033011,0.3,83613.0,83611.0,1.41050359]
[1743434033434,0.551157,83613.0,83611.0,1.40950359]
[1743434033637,0.01196,83612.0,83611.0,1.40950359]
[1743434033844,0.25116,83612.0,83611.0,1.40950359]
[1743434034041,0.25116,83612.0,83611.0,8e-07]
[1743434035498,0.25116,83612.0,83611.0,0.0010008]
[1743434035702,0.25116,83612.0,83611.0,8e-07]
[1743434036292,0.25216,83612.0,83611.0,0.0010008]
[1743434036838,0.56336246,83612.0,83611.0,0.0010008]
[1743434037604,0.56369946,83612.0,83611.0,0.0010008]
[1743434038263,0.56269946,83612.0,83611.0,8e-07]
[1743434038529,0.56369946,83612.0,83611.0,0.0010008]
[1743434039276,0.68291821,83612.0,83611.0,0.0010008]
[1743434040303,0.43175821,83612.0,83611.0,0.0010008]
[1743434040506,0.68291821,83612.0,83611.0,0.0010008]
[1743434040838,0.70532163,83612.0,83611.0,0.0010008]
[1743434041962,0.43175821,83612.0,83611.0,0.0010008]
[1743434042517,0.68291821,83612.0,83611.0,0.0010008]
[1743434042890,0.68191821,83612.0,83611.0,8e-07]
[1743434043327,0.68291821,83612.0,83611.0,0.0010008]
[1743434044043,0.70532347,83612.0,83611.0,0.0010008]
[1743434046368,0.70032347,83612.0,83611.0,0.0010008]
[1743434047196,0.82212347,83612.0,83611.0,0.0010008]
[1743434047392,0.94472733,83612.0,83611.0,0.0010008]
[1743434047962,0.94372733,83612.0,83611.0,8e-07]
[1743434048377,0.82212347,83612.0,83611.0,0.0010008]
[1743434048591,0.70032347,83612.0,83611.0,0.0010008]
[1743434049626,0.94553119,83612.0,83611.0,0.0010008]
[1743434050238,0.94553119,83612.0,83601.0,0.002]
[1743434050239,0.551189,83602.0,83601.0,0.002]
[1743434050410,0.67379286,83602.0,83601.0,0.002]
[1743434051058,0.551237,83586.0,83585.0,0.0001683]
[1743434051255,0.551279,83572.0,83558.0,0.1982483]
[1743434051615,0.551279,83572.0,83558.0,0.0001683]
[1743434051820,0.59593408,83572.0,83559.0,0.10546141]
[1743434052264,0.34465508,83572.0,83560.0,0.19808]
[1743434052476,0.34465508,83572.0,83571.0,0.00213984]
[1743434052673,0.35662008,83572.0,83571.0,0.00213984]
[1743434053001,0.36782254,83572.0,83571.0,0.00213984]
[1743434053201,0.34541728,83572.0,83571.0,0.00213984]
[1743434053769,0.35426196,83572.0,83571.0,0.00213984]
[1743434054974,0.3430595,83572.0,83571.0,0.00213984]
[1743434055374,0.3440595,83572.0,83571.0,0.00213984]
[1743434058517,0.2833735,83572.0,83571.0,0.00213984]
[1743434061117,0.2833735,83572.0,83571.0,0.00213984]
[1743434062226,0.2833735,83572.0,83571.0,0.00230844]
[1743434064285,0.0320945,83572.0,83571.0,0.00230844]
[1743434064416,0.2714085,83572.0,83571.0,0.00230844]
[1743434064619,0.0320945,83572.0,83571.0,0.00230844]
[1743434065462,0.2714085,83572.0,83571.0,0.00230844]
[1743434065660,0.2833735,83572.0,83571.0,0.00230844]
[1743434065885,0.2714085,83572.0,83571.0,0.00230844]
[1743434067406,0.0320945,83572.0,83571.0,0.00230844]
[1743434067782,0.3,83573.0,83571.0,0.00230844]
[1743434068367,0.3,83575.0,83571.0,0.00230844]
[1743434068800,0.32054142,83575.0,83572.0,0.12260386]
[1743434069528,0.02054142,83575.0,83572.0,0.12260386]
[1743434069967,0.001,83573.0,83572.0,0.12260386]
[1743434071149,0.01983505,83575.0,83572.0,0.12260386]
[1743434071336,0.3,83576.0,83572.0,0.12260386]
[1743434071533,0.001,83575.0,83572.0,0.12360386]
[1743434071734,0.239306,83575.0,83572.0,0.12260386]
[1743434071964,0.3,83576.0,83572.0,0.12260386]
[1743434072131,0.001,83573.0,83572.0,0.12360386]
[1743434072333,0.001,83573.0,83572.0,0.52260386]
[1743434072537,0.3200253,83576.0,83572.0,0.12260386]
[1743434072733,0.3200253,83576.0,83572.0,0.12360386]
[1743434072734,0.001,83575.0,83572.0,0.12360386]
[1743434073032,0.3200253,83576.0,83572.0,0.12260386]
[1743434073870,0.251276,83573.0,83571.0,0.00230844]
[1743434074049,0.251279,83572.0,83571.0,0.00230844]
[1743434074487,0.551279,83572.0,83571.0,0.00230844]
[1743434075140,0.551279,83572.0,83571.0,0.00330844]
[1743434075479,0.551279,83572.0,83571.0,0.00230844]
[1743434075679,0.551279,83572.0,83571.0,0.00330844]
[1743434075907,0.552279,83572.0,83571.0,0.00330844]
[1743434076060,0.56247327,83572.0,83571.0,0.00230844]
[1743434076513,0.31219427,83572.0,83571.0,0.00330844]
[1743434077791,0.301,83572.0,83571.0,0.00330844]
[1743434077943,0.301,83572.0,83571.0,0.3652293]
[1743434078150,0.301,83572.0,83571.0,0.1259123]
[1743434078886,0.3,83572.0,83571.0,0.1249123]
[1743434079132,0.301,83572.0,83571.0,0.1259123]
[1743434079696,0.301,83572.0,83571.0,0.00330844]
[1743434080063,0.552279,83572.0,83571.0,1.21405289]
[1743434080265,0.301,83572.0,83571.0,1.21405289]
[1743434080471,0.552279,83572.0,83571.0,1.21405289]
[1743434084864,0.540314,83572.0,83571.0,1.21405289]
[1743434085274,0.301,83572.0,83571.0,1.21405289]
[1743434085984,0.301,83572.0,83571.0,1.61405289]
[1743434086742,0.301,83572.0,83571.0,1.21405289]
[1743434087286,0.552279,83572.0,83571.0,1.21405289]
[1743434088663,0.56349841,83572.0,83571.0,1.21405289]
[1743434088937,0.31221941,83572.0,83571.0,1.21405289]
[1743434089512,0.31121941,83572.0,83571.0,1.21305289]
[1743434089925,0.301,83572.0,83571.0,1.21405289]
[1743434090271,0.3,83572.0,83571.0,1.33565675]
[1743434090421,0.301,83572.0,83571.0,1.33665675]
[1743434091189,0.552279,83572.0,83571.0,1.21405289]
[1743434092834,0.552279,83572.0,83571.0,0.00330844]
[1743434093606,0.67149775,83572.0,83571.0,0.00330844]
[1743434094169,0.67049775,83572.0,83571.0,0.00230844]
[1743434094351,0.68171982,83572.0,83571.0,0.00230844]
[1743434094697,0.68271982,83572.0,83571.0,0.00330844]
[1743434095331,0.38271982,83572.0,83571.0,0.00330844]
[1743434095991,0.38171982,83572.0,83571.0,0.00230844]
[1743434096304,0.38271982,83572.0,83571.0,0.00330844]
[1743434097171,0.68271982,83572.0,83571.0,0.00330844]
[1743434099353,0.70514553,83572.0,83571.0,0.00330844]
[1743434100615,0.68271982,83572.0,83571.0,0.00330844]
[1743434103161,0.76301982,83572.0,83571.0,0.00330844]
[1743434103609,0.68271982,83572.0,83571.0,0.00330844]
[1743434105657,0.43144082,83572.0,83571.0,0.00330844]
[1743434105868,0.68271982,83572.0,83571.0,0.00330844]
[1743434106061,0.38271982,83572.0,83571.0,0.00330844]
[1743434106270,0.37075482,83572.0,83571.0,0.00330844]
[1743434106521,0.38271982,83572.0,83571.0,0.00330844]
[1743434106698,0.68271982,83572.0,83571.0,0.00330844]
[1743434110502,0.67075482,83572.0,83571.0,0.00330844]
[1743434110702,0.68271982,83572.0,83571.0,0.00330844]
[1743434110948,0.43144082,83572.0,83571.0,0.00330844]
[1743434111273,0.68271982,83572.0,83571.0,0.00330844]
[1743434112432,0.43144082,83572.0,83571.0,0.00330844]
[1743434112629,0.01222207,83572.0,83571.0,0.4523943]
[1743434112849,0.01222207,83572.0,83571.0,0.56693515]
[1743434113255,0.001,83572.0,83571.0,0.96693515]
[1743434113666,0.0003372,83572.0,83571.0,0.96593515]
[1743434114342,0.0003372,83576.0,83575.0,0.39741185]
[1743434114663,0.0003372,83576.0,83575.0,1.7302785]
[1743434115177,0.01196,83607.0,83584.0,0.251244]
[1743434115385,0.01196,83607.0,83584.0,3.0753151]
[1743434115609,0.32064479,83602.0,83584.0,3.08985595]
[1743434115810,0.3,83599.0,83584.0,3.48985595]
[1743434116374,0.3,83599.0,83584.0,3.48885595]
[1743434116975,0.02064479,83602.0,83584.0,3.48885595]
[1743434117182,0.11921875,83606.0,83584.0,3.53895595]
[1743434117183,0.0013372,83585.0,83584.0,3.53895595]
[1743434118184,0.0013372,83585.0,83584.0,3.54395595]
[1743434118768,0.0013372,83585.0,83584.0,3.54295595]
[1743434118967,0.0003372,83585.0,83584.0,3.54295595]
[1743434119360,0.0013372,83585.0,83584.0,3.54595595]
[1743434119540,0.0003372,83585.0,83584.0,3.34539595]
[1743434119740,0.0003372,83585.0,83584.0,3.54291595]
[1743434119970,0.0013372,83585.0,83584.0,3.54591595]
[1743434121195,0.0013372,83585.0,83584.0,2.9288551]
[1743434121429,0.0013372,83585.0,83584.0,3.1273351]
[1743434121799,0.0013372,83585.0,83584.0,3.54187595]
[1743434122658,0.0003372,83585.0,83584.0,3.54387595]
[1743434122859,0.0003372,83585.0,83584.0,3.34639595]
[1743434123065,0.0013372,83585.0,83584.0,4.16783595]
[1743434123263,0.0003372,83585.0,83584.0,4.16483595]
[1743434123690,2e-07,83585.0,83584.0,4.19283595]
[1743434124741,2e-07,83585.0,83584.0,4.19279595]
[1743434126119,2e-07,83585.0,83584.0,4.19296455]
[1743434126420,0.0003374,83585.0,83584.0,4.19296455]
[1743434126551,4e-07,83585.0,83584.0,4.49296455]
[1743434126752,4e-07,83585.0,83584.0,4.90156455]
[1743434128325,4e-07,83585.0,83584.0,4.89856455]
[1743434128730,0.0010004,83585.0,83584.0,4.90156455]
[1743434129246,4e-07,83585.0,83584.0,4.90156455]
[1743434130051,0.000337,83612.0,83611.0,0.351162]
[1743434130349,0.000337,83612.0,83611.0,3.18397395]
[1743434130553,0.000337,83612.0,83611.0,3.18897395]
[1743434130752,0.000337,83612.0,83611.0,3.58897395]
[1743434131319,0.00080208,83612.0,83611.0,3.58397395]
[1743434131908,0.00180208,83612.0,83611.0,3.58797395]
[1743434132058,0.00080208,83612.0,83611.0,3.58397395]
[1743434133043,0.00180208,83612.0,83611.0,3.58797395]
[1743434133599,0.00180208,83612.0,83611.0,4.32657395]
[1743434133600,8e-08,83612.0,83611.0,4.32657395]
[1743434134616,8e-08,83612.0,83611.0,4.37537395]
[1743434134817,0.000337,83654.0,83644.0,0.011955]
[1743434135197,0.239102,83646.0,83645.0,0.93968386]
[1743434135366,0.239099,83648.0,83645.0,0.93968386]
[1743434135602,0.239099,83648.0,83645.0,1.33968386]
[1743434135726,0.251049,83649.0,83645.0,0.74240386]
[1743434135727,0.239102,83646.0,83645.0,0.74240386]
[1743434135928,0.2858,83647.0,83645.0,0.93964386]
[1743434136254,0.239102,83646.0,83645.0,0.93964386]
[1743434136460,0.0467,83647.0,83645.0,0.93964386]
[1743434136663,0.2858,83647.0,83646.0,0.19724]
[1743434136862,0.2858,83647.0,83646.0,0.31984386]
[1743434136863,0.297755,83647.0,83646.0,0.31984386]
[1743434137037,0.2858,83647.0,83646.0,0.31984386]
[1743434137399,0.0467,83647.0,83646.0,0.31984386]
[1743434137942,0.2858,83647.0,83646.0,0.31984386]
[1743434138150,0.297755,83647.0,83646.0,0.31884386]
[1743434138773,0.298755,83647.0,83646.0,0.32384386]
[1743434139297,0.298755,83647.0,83646.0,0.12760386]
[1743434139595,0.298755,83647.0,83646.0,0.32480386]
[1743434139903,0.676155,83647.0,83646.0,0.005]
[1743434141188,0.551057,83646.0,83645.0,0.6208]
[1743434142575,0.551057,83646.0,83645.0,0.6268]
[1743434144296,0.67027575,83646.0,83645.0,0.6268]
[1743434144834,0.67027575,83646.0,83645.0,0.006]
[1743434145124,0.68143656,83646.0,83645.0,0.006]
[1743434145542,0.01116081,83646.0,83645.0,0.12860386]
[1743434145753,0.03348974,83646.0,83645.0,1.33934831]
[1743434145911,0.03348974,83646.0,83645.0,1.53646831]
[1743434146338,0.34544474,83646.0,83645.0,1.53646831]
[1743434146536,0.33348974,83646.0,83645.0,1.53646831]
[1743434146748,0.539102,83646.0,83645.0,1.53646831]
[1743434146954,0.3,83646.0,83645.0,1.53646831]
[1743434147265,0.539102,83646.0,83645.0,1.53646831]
[1743434147493,0.3,83647.0,83645.0,1.53646831]
[1743434147647,0.239102,83646.0,83645.0,1.41386445]
[1743434147859,0.251057,83646.0,83645.0,0.32572386]
[1743434148242,0.251057,83646.0,83645.0,1.53646831]
[1743434148460,0.239102,83646.0,83645.0,1.93046831]
[1743434148664,0.251057,83646.0,83645.0,1.93546831]
[1743434148823,0.251057,83646.0,83645.0,1.53546831]
[1743434149028,0.251057,83646.0,83645.0,1.53046831]
[1743434149520,0.56256312,83646.0,83645.0,1.53046831]
[1743434149710,0.55060812,83646.0,83645.0,1.53046831]
[1743434150056,0.56256312,83646.0,83645.0,1.53046831]
[1743434150470,0.58590424,83646.0,83645.0,1.53546831]
[1743434151151,0.58590424,83646.0,83645.0,0.20212]
[1743434152188,0.58590424,83646.0,83645.0,0.005]
[1743434153832,0.62168152,83646.0,83645.0,0.005]
[1743434153977,0.63957674,83646.0,83645.0,0.005]
[1743434154612,0.76947674,83646.0,83645.0,0.005]
[1743434154801,0.88869549,83646.0,83645.0,0.005]
[1743434155006,0.626678,83639.0,83638.0,0.072518]
[1743434155827,0.65574214,83639.0,83638.0,0.072518]